Workbook

Sheet Difference Contribution
B1: Convert Excel To Text File
B3: Employee Code : | C3: E1301002673K
B5: New IC Number | C5: Name | D5: Month | E5: Year (YYYY) | F5: Salary | G5: Socso Employer Share | H5: Socso Employee Share | I5: EIS Employer Share | J5: EIS Employee Share
B6: 120223789101 | C6: ALI BIN ABU | D6: 3 | E6: 2022 | F6: 15000 | G6: =VLOOKUP(data[[#This Row],[Salary]],Sheet1!A:E,2) -> 104.15 | H6: =VLOOKUP(data[[#This Row],[Salary]],Sheet1!A:E,3) -> 29.75 | I6: =VLOOKUP(data[[#This Row],[Salary]],Sheet1!A:E,4) -> 11.9 | J6: =VLOOKUP(data[[#This Row],[Salary]],Sheet1!A:E,5) -> 11.9
B7: 101205654321 | C7: ABU BIN ALI | D7: 3 | E7: 2022 | F7: 900 | G7: =VLOOKUP(data[[#This Row],[Salary]],Sheet1!A:E,2) -> 14.85 | H7: =VLOOKUP(data[[#This Row],[Salary]],Sheet1!A:E,3) -> 4.25 | I7: =VLOOKUP(data[[#This Row],[Salary]],Sheet1!A:E,4) -> 1.7 | J7: =VLOOKUP(data[[#This Row],[Salary]],Sheet1!A:E,5) -> 1.7
B8: 120223789101 | C8: ALI BIN ABU | D8: 4 | E8: 2022 | F8: 1256 | G8: =VLOOKUP(data[[#This Row],[Salary]],Sheet1!A:E,2) -> 21.85 | H8: =VLOOKUP(data[[#This Row],[Salary]],Sheet1!A:E,3) -> 6.25 | I8: =VLOOKUP(data[[#This Row],[Salary]],Sheet1!A:E,4) -> 2.5 | J8: =VLOOKUP(data[[#This Row],[Salary]],Sheet1!A:E,5) -> 2.5
B9: 101205654321 | C9: ABU BIN ALI | D9: 4 | E9: 2022 | F9: 1500 | G9: =VLOOKUP(data[[#This Row],[Salary]],Sheet1!A:E,2) -> 25.35 | H9: =VLOOKUP(data[[#This Row],[Salary]],Sheet1!A:E,3) -> 7.25 | I9: =VLOOKUP(data[[#This Row],[Salary]],Sheet1!A:E,4) -> 2.9 | J9: =VLOOKUP(data[[#This Row],[Salary]],Sheet1!A:E,5) -> 2.9
B10: 120223789101 | C10: ALI BIN ABU | D10: 5 | E10: 2022 | F10: 300.9 | G10: =VLOOKUP(data[[#This Row],[Salary]],Sheet1!A:E,2) -> 6.15 | H10: =VLOOKUP(data[[#This Row],[Salary]],Sheet1!A:E,3) -> 1.75 | I10: =VLOOKUP(data[[#This Row],[Salary]],Sheet1!A:E,4) -> 0.7 | J10: =VLOOKUP(data[[#This Row],[Salary]],Sheet1!A:E,5) -> 0.7
B11: 101205654321 | C11: ABU BIN ALI | D11: 5 | E11: 2022 | F11: 3565 | G11: =VLOOKUP(data[[#This Row],[Salary]],Sheet1!A:E,2) -> 62.15 | H11: =VLOOKUP(data[[#This Row],[Salary]],Sheet1!A:E,3) -> 17.75 | I11: =VLOOKUP(data[[#This Row],[Salary]],Sheet1!A:E,4) -> 7.1 | J11: =VLOOKUP(data[[#This Row],[Salary]],Sheet1!A:E,5) -> 7.1
B12: 120223789101 | C12: ALI BIN ABU | D12: 6 | E12: 2022 | F12: 4500 | G12: =VLOOKUP(data[[#This Row],[Salary]],Sheet1!A:E,2) -> 77.85 | H12: =VLOOKUP(data[[#This Row],[Salary]],Sheet1!A:E,3) -> 22.25 | I12: =VLOOKUP(data[[#This Row],[Salary]],Sheet1!A:E,4) -> 8.9 | J12: =VLOOKUP(data[[#This Row],[Salary]],Sheet1!A:E,5) -> 8.9
B13: 101205654321 | C13: ABU BIN ALI | D13: 6 | E13: 2022 | F13: 4500 | G13: =VLOOKUP(data[[#This Row],[Salary]],Sheet1!A:E,2) -> 77.85 | H13: =VLOOKUP(data[[#This Row],[Salary]],Sheet1!A:E,3) -> 22.25 | I13: =VLOOKUP(data[[#This Row],[Salary]],Sheet1!A:E,4) -> 8.9 | J13: =VLOOKUP(data[[#This Row],[Salary]],Sheet1!A:E,5) -> 8.9
B14: 120223789101 | C14: ALI BIN ABU | D14: 7 | E14: 2022 | F14: 5000 | G14: =VLOOKUP(data[[#This Row],[Salary]],Sheet1!A:E,2) -> 86.65 | H14: =VLOOKUP(data[[#This Row],[Salary]],Sheet1!A:E,3) -> 24.75 | I14: =VLOOKUP(data[[#This Row],[Salary]],Sheet1!A:E,4) -> 9.9 | J14: =VLOOKUP(data[[#This Row],[Salary]],Sheet1!A:E,5) -> 9.9
B15: 101205654321 | C15: ABU BIN ALI | D15: 7 | E15: 2022 | F15: 11000 | G15: =VLOOKUP(data[[#This Row],[Salary]],Sheet1!A:E,2) -> 104.15 | H15: =VLOOKUP(data[[#This Row],[Salary]],Sheet1!A:E,3) -> 29.75 | I15: =VLOOKUP(data[[#This Row],[Salary]],Sheet1!A:E,4) -> 11.9 | J15: =VLOOKUP(data[[#This Row],[Salary]],Sheet1!A:E,5) -> 11.9

Sheet Sheet1 (hidden)
A1: Salary | B1: Socso Employer Share | C1: Socso Employee Share | D1: EIS Employer Share | E1: EIS Employee Share
A2: 0 | B2: 0.4 | C2: 0.1 | D2: 0.05 | E2: 0.05
A3: 30.01 | B3: 0.7 | C3: 0.2 | D3: 0.1 | E3: 0.1
A4: 50.01 | B4: 1.1 | C4: 0.3 | D4: 0.15 | E4: 0.15
A5: 70.01 | B5: 1.5 | C5: 0.4 | D5: 0.2 | E5: 0.2
A6: 100.01 | B6: 2.1 | C6: 0.6 | D6: 0.25 | E6: 0.25
A7: 140.01 | B7: 2.95 | C7: 0.85 | D7: 0.35 | E7: 0.35
A8: 200.01 | B8: 4.35 | C8: 1.25 | D8: 0.5 | E8: 0.5
A9: 300.01 | B9: 6.15 | C9: 1.75 | D9: 0.7 | E9: 0.7
A10: 400.01 | B10: 7.85 | C10: 2.25 | D10: 0.9 | E10: 0.9
A11: 500.01 | B11: 9.65 | C11: 2.75 | D11: 1.1 | E11: 1.1
A12: 600.01 | B12: 11.35 | C12: 3.25 | D12: 1.3 | E12: 1.3
A13: 700.01 | B13: 13.15 | C13: 3.75 | D13: 1.5 | E13: 1.5
A14: 800.01 | B14: 14.85 | C14: 4.25 | D14: 1.7 | E14: 1.7
A15: 900.01 | B15: 16.65 | C15: 4.75 | D15: 1.9 | E15: 1.9
A16: 1000.01 | B16: 18.35 | C16: 5.25 | D16: 2.1 | E16: 2.1
A17: 1100.01 | B17: 20.15 | C17: 5.75 | D17: 2.3 | E17: 2.3
A18: 1200.01 | B18: 21.85 | C18: 6.25 | D18: 2.5 | E18: 2.5
A19: 1300.01 | B19: 23.65 | C19: 6.75 | D19: 2.7 | E19: 2.7
A20: 1400.01 | B20: 25.35 | C20: 7.25 | D20: 2.9 | E20: 2.9
A21: 1500.01 | B21: 27.15 | C21: 7.75 | D21: 3.1 | E21: 3.1
A22: 1600.01 | B22: 28.85 | C22: 8.25 | D22: 3.3 | E22: 3.3
A23: 1700.01 | B23: 30.65 | C23: 8.75 | D23: 3.5 | E23: 3.5
A24: 1800.01 | B24: 32.35 | C24: 9.25 | D24: 3.7 | E24: 3.7
A25: 1900.01 | B25: 34.15 | C25: 9.75 | D25: 3.9 | E25: 3.9
A26: 2000.01 | B26: 35.85 | C26: 10.25 | D26: 4.1 | E26: 4.1
A27: 2100.01 | B27: 37.65 | C27: 10.75 | D27: 4.3 | E27: 4.3
A28: 2200.01 | B28: 39.35 | C28: 11.25 | D28: 4.5 | E28: 4.5
A29: 2300.01 | B29: 41.15 | C29: 11.75 | D29: 4.7 | E29: 4.7
A30: 2400.01 | B30: 42.85 | C30: 12.25 | D30: 4.9 | E30: 4.9
A31: 2500.01 | B31: 44.65 | C31: 12.75 | D31: 5.1 | E31: 5.1
A32: 2600.01 | B32: 46.35 | C32: 13.25 | D32: 5.3 | E32: 5.3
A33: 2700.01 | B33: 48.15 | C33: 13.75 | D33: 5.5 | E33: 5.5
A34: 2800.01 | B34: 49.85 | C34: 14.25 | D34: 5.7 | E34: 5.7
A35: 2900.01 | B35: 51.65 | C35: 14.75 | D35: 5.9 | E35: 5.9
A36: 3000.01 | B36: 53.35 | C36: 15.25 | D36: 6.1 | E36: 6.1
A37: 3100.01 | B37: 55.15 | C37: 15.75 | D37: 6.3 | E37: 6.3
A38: 3200.01 | B38: 56.85 | C38: 16.25 | D38: 6.5 | E38: 6.5
A39: 3300.01 | B39: 58.65 | C39: 16.75 | D39: 6.7 | E39: 6.7
A40: 3400.01 | B40: 60.35 | C40: 17.25 | D40: 6.9 | E40: 6.9
A41: 3500.01 | B41: 62.15 | C41: 17.75 | D41: 7.1 | E41: 7.1
A42: 3600.01 | B42: 63.85 | C42: 18.25 | D42: 7.3 | E42: 7.3
A43: 3700.01 | B43: 65.65 | C43: 18.75 | D43: 7.5 | E43: 7.5
A44: 3800.01 | B44: 67.35 | C44: 19.25 | D44: 7.7 | E44: 7.7
A45: 3900.01 | B45: 69.15 | C45: 19.75 | D45: 7.9 | E45: 7.9
A46: 4000.01 | B46: 70.85 | C46: 20.25 | D46: 8.1 | E46: 8.1
A47: 4100.01 | B47: 72.65 | C47: 20.75 | D47: 8.3 | E47: 8.3
A48: 4200.01 | B48: 74.35 | C48: 21.25 | D48: 8.5 | E48: 8.5
A49: 4300.01 | B49: 76.15 | C49: 21.75 | D49: 8.7 | E49: 8.7
A50: 4400.01 | B50: 77.85 | C50: 22.25 | D50: 8.9 | E50: 8.9
A51: 4500.01 | B51: 79.65 | C51: 22.75 | D51: 9.1 | E51: 9.1
A52: 4600.01 | B52: 81.35 | C52: 23.25 | D52: 9.3 | E52: 9.3
A53: 4700.01 | B53: 83.15 | C53: 23.75 | D53: 9.5 | E53: 9.5
A54: 4800.01 | B54: 84.85 | C54: 24.25 | D54: 9.7 | E54: 9.7
A55: 4900.01 | B55: 86.65 | C55: 24.75 | D55: 9.9 | E55: 9.9
A56: 5000.01 | B56: 88.35 | C56: 25.25 | D56: 10.1 | E56: 10.1
A57: 5100.01 | B57: 90.15 | C57: 25.75 | D57: 10.3 | E57: 10.3
A58: 5200.01 | B58: 91.85 | C58: 26.25 | D58: 10.5 | E58: 10.5
A59: 5300.01 | B59: 93.65 | C59: 26.75 | D59: 10.7 | E59: 10.7
A60: 5400.01 | B60: 95.35 | C60: 27.25 | D60: 10.9 | E60: 10.9
A61: 5500.01 | B61: 97.15 | C61: 27.75 | D61: 11.1 | E61: 11.1
A62: 5600.01 | B62: 98.85 | C62: 28.25 | D62: 11.3 | E62: 11.3
A63: 5700.01 | B63: 100.65 | C63: 28.75 | D63: 11.5 | E63: 11.5
A64: 5800.01 | B64: 102.35 | C64: 29.25 | D64: 11.7 | E64: 11.7
A65: 5900.01 | B65: 104.15 | C65: 29.75 | D65: 11.9 | E65: 11.9
A66: 6000.01 | B66: 104.15 | C66: 29.75 | D66: 11.9 | E66: 11.9
